[Event "FRA-ch Teams Top 16-A 2022"]
[Site "Chartres"]
[Date "2022.06.12"]
[Round "4.1"]
[White "Abasov, Nijat"]
[Black "Postny, Evgeny"]
[Result "1/2-1/2"]
[ECO "E11"]
[WhiteElo "2635"]
[BlackElo "2563"]
[Annotator "TA"]
[PlyCount "77"]
[EventDate "2022.06.09"]
[EventType "team-tourn"]
[EventCountry "FRA"]
[SourceTitle "playchess.com"]
[Source "ChessBase"]
[SourceQuality "1"]
[TimeControl "40/5400+30:1800+30"]

{[%evp 15,77,8,20,0,0,-26,0,-35,18,18,29,-75,-80,-82,-75,-78,-58,-43,-26,-63,-55,-29,-52,-49,-38,-59,-53,-52,-51,-50,-67,-62,-29,-36,-20,-23,-10,-17,-17,-83,-22,-15,0,0,0,-16,-17,-32,-8,-15,-14,-28,0,0,0,0,0,0,0,0,0,0,0,-25]} 1. d4 {[%emt 0:00:04]} d5 {[%emt 0:00:12]} 2. Nf3 {[%emt 0:00:08]} Nf6 {[%emt 0:00:05]} 3. c4 {[%emt 0:00:27]} e6 {[%emt 0:00:17]} 4. g3 {[%emt 0:00:06]} Bb4+ {[%emt 0:00:18]} 5. Bd2 {[%emt 0:00:07]} Be7 {[%emt 0:00:06]} 6. Bg2 {[%emt 0:00:09]} O-O {[%emt 0:00:07]} 7. O-O {[%emt 0:00:06]} c6 {[%emt 0:00:06]} 8. Qc2 {[%emt 0:00:06]} Nbd7 {[%emt 0:00:12] [#] is cutting edge theory.} 9. h4 $146 {[%emt 0:00:21] E11: Bogo-Indian.} ({Predecessor:} 9. Bf4 b6 10. Nbd2 Nh5 11. e3 Nxf4 12. exf4 Bb7 13. cxd5 cxd5 14. Rfc1 Rc8 15. Qa4 a6 16. Bf1 b5 17. Qd1 Rxc1 18. Rxc1 {½-½ (98) Matlakov,M (2671)-Niemann,H (2678) Chess.com INT 2022}) 9... b6 {[%emt 0:05:28]} 10. Nc3 {[%emt 0:00:40]} Bb7 {[%emt 0:07:22]} 11. e4 {[%emt 0:00:57]} Nxe4 {[%emt 0:12:17]} ({Black should try} 11... dxc4 $15 12. e5 Nd5) 12. Nxe4 $11 {[%emt 0:02:25]} dxe4 {[%emt 0:00:15]} 13. Ng5 {[%emt 0:03:34] [#]} (13. Qxe4 $11 Nf6 14. Qe3) 13... c5 $1 $17 {[%emt 0:08:59]} 14. d5 {[%emt 0:05:15]} exd5 {[%emt 0:03:00]} 15. cxd5 {[%emt 0:00:08]} Nf6 {[%emt 0:07:52]} 16. Nxe4 {[%emt 0:29:43]} Bxd5 {[%emt 0:04:14]} 17. Rad1 {[%emt 0:01:26]} Bxe4 {[%emt 0:01:44]} 18. Bxe4 {[%emt 0:00:10]} Nxe4 {[%emt 0:00:04]} 19. Qxe4 {[%emt 0:00:10][%cal Od2g5]} Bf6 {[%emt 0:04:22] Inhibits Bg5.} 20. Bc3 {[%emt 0:00:58] Inhibits Qd4.} Qe8 {[%emt 0:00:58]} 21. Rfe1 {[%emt 0:00:12]} Qxe4 {[%emt 0:04:06]} 22. Rxe4 {[%emt 0:00:04]} Rad8 {[%emt 0:00:43]} 23. Rde1 {[%emt 0:00:53]} Bxc3 {[%emt 0:28:41]} 24. bxc3 $15 {[%emt 0:00:51][%mdl 4096] Endgame KRR-KRR} f5 {[%emt 0:01:13]} 25. Re7 {[%emt 0:02:24]} Rf7 {[%emt 0:00:06]} 26. Re8+ {[%emt 0:01:19]} Rxe8 {[%emt 0:00:51]} 27. Rxe8+ $11 {[%emt 0:00:04] KR-KR} Rf8 {[%emt 0:00:03]} 28. Re7 {[%emt 0:00:07]} Rf7 {[%emt 0:00:11]} 29. Re8+ {[%emt 0:00:05]} Rf8 {[%emt 0:00:03]} 30. Re7 {[%emt 0:00:05]} f4 {[%emt 0:00:17][%cal Bf5f4,Bf4f3][%mdl 32]} 31. Kg2 {[%emt 0:22:24]} f3+ {[%emt 0:03:17]} 32. Kf1 {[%emt 0:00:04]} Rd8 {[%emt 0:00:38] aiming for ...Rd1+.} 33. Ke1 {[%emt 0:00:04] Against Rd1+} Rd3 {[%emt 0:00:24]} 34. Rxa7 {[%emt 0:00:04] The position is equal.} Rxc3 {[%emt 0:00:12]} 35. Kd2 {[%emt 0:00:12] Prevents Rc2+.} Rc4 {[%emt 0:00:09]} 36. Ke3 {[%emt 0:01:57] Against Re4+} Rc3+ {[%emt 0:00:19]} 37. Kd2 {[%emt 0:00:05]} Rc4 {[%emt 0:00:03]} 38. Ke3 {[%emt 0:00:05] Against Re4+} Rc3+ {[%emt 0:00:20]} 39. Ke4 {[%emt 0:32:01] Weighted Error Value: White=0.13 (very precise) /Black=0.10 (very precise)} 1/2-1/2

[Event "FRA-ch Teams Top 16-A 2022"]
[Site "Chartres"]
[Date "2022.06.12"]
[Round "4.2"]
[White "Ganguly, Surya Shekhar"]
[Black "Santos Ruiz, Miguel"]
[Result "1-0"]
[ECO "D35"]
[WhiteElo "2616"]
[BlackElo "2586"]
[Annotator "TA"]
[PlyCount "105"]
[EventDate "2022.06.09"]
[EventType "team-tourn"]
[EventCountry "FRA"]
[SourceTitle "playchess.com"]
[Source "ChessBase"]
[SourceQuality "1"]
[TimeControl "40/5400+30:1800+30"]

{[%evp 15,105,7,21,11,20,24,16,0,14,20,19,15,13,5,3,8,20,0,12,0,0,0,0,10,55,55,55,55,55,16,60,60,60,33,55,33,55,33,48,33,55,41,41,48,48,23,38,0,10,0,37,0,58,58,56,57,74,68,59,41,172,156,157,150,159,159,192,186,360,376,358,366,320,338,372,447,427,391,391,380,398,367,365,370,631,635,645,633,625,622,1404,1268]} 1. d4 {[%emt 0:00:20]} Nf6 {[%emt 0:00:05]} 2. c4 {[%emt 0:00:06]} e6 {[%emt 0:00:04]} 3. Nc3 {[%emt 0:00:09]} d5 {[%emt 0:00:39]} 4. cxd5 {[%emt 0:00:32]} exd5 {[%emt 0:00:04]} 5. Bg5 {[%emt 0:00:10]} c6 {[%emt 0:00:05]} 6. e3 {[%emt 0:00:07]} h6 {[%emt 0:00:04]} 7. Bh4 {[%emt 0:00:09]} Be7 {[%emt 0:00:05]} 8. Bd3 {[%emt 0:00:25]} O-O {[%emt 0:00:06]} 9. Nge2 $1 {[%emt 0:06:47][%cal Bg1e2,Be2c1,Bc1d3,Bd3c5][%mdl 4] outshines the older 9.Qc2. D35: Queen's Gambit Declined: Exchange Variation.} Re8 {[%emt 0:00:17]} 10. O-O {[%emt 0:01:06]} Nbd7 {[%emt 0:00:04]} 11. a4 $5 {[%emt 0:00:35][%mdl 4] The position is equal. Exploring less charted territory.} Nh5 {[%emt 0:09:06]} 12. Bxe7 {[%emt 0:00:10]} Qxe7 {[%emt 0:00:04]} 13. a5 {[%emt 0:00:08] [#]} Ndf6 $146 {[%emt 0:00:31]} ({Predecessor:} 13... a6 14. Ra3 Nf8 15. Na4 Rb8 16. Qd2 Qg5 17. f3 g6 18. Bb1 Ng7 19. Nf4 Bf5 {½-½ (29) Caruana,F (2786)-Firouzja,A (2804) Bucharest 2022}) 14. Nc1 {[%emt 0:05:25]} g6 {[%emt 0:04:29]} 15. Be2 {[%emt 0:03:07]} Ng7 {[%emt 0:02:58]} 16. Nd3 {[%emt 0:01:51][%cal Oa5a6]} a6 {[%emt 0:21:33]} 17. Qb3 {[%emt 0:03:09]} Nf5 {[%emt 0:07:13]} 18. Nc5 {[%emt 0:13:50]} Nd6 {[%emt 0:14:55]} 19. Bd3 {[%emt 0:02:52]} Bf5 {[%emt 0:09:54]} 20. Bxf5 {[%emt 0:01:43]} gxf5 {[%emt 0:00:51]} 21. Qd1 {[%emt 0:03:41]} Nfe4 {[%emt 0:01:23]} 22. N3xe4 {[%emt 0:08:36]} Nxe4 {[%emt 0:04:54]} 23. Nd3 {[%emt 0:01:14]} Qg5 {[%emt 0:00:23]} 24. Qc2 {[%emt 0:03:42]} Re7 {[%emt 0:00:17]} 25. Rae1 {[%emt 0:00:44][%cal Ba1e1,Be1e2,Be2f2][%mdl 32]} Rae8 {[%emt 0:00:21]} 26. b3 {[%emt 0:01:29]} Kh8 {[%emt 0:01:07]} 27. Nf4 {[%emt 0:01:38]} Kg8 {[%emt 0:03:11]} 28. f3 {[%emt 0:02:32]} Nf6 {[%emt 0:00:50]} 29. Qf2 {[%emt 0:00:27]} Nd7 {[%emt 0:00:48]} 30. Re2 {[%emt 0:04:11]} Nf8 {[%emt 0:01:01]} 31. h4 {[%emt 0:01:26]} Qf6 {[%emt 0:01:24]} 32. g4 {[%emt 0:09:34]} fxg4 {[%emt 0:00:53]} 33. fxg4 {[%emt 0:04:32] aiming for Qg3.} (33. Nh5 $5 {[%cal Rh5f6]} Qg6 34. Nf4 $11 (34. fxg4 Nh7 $11)) 33... Ng6 {[%emt 0:00:42]} (33... Re4 $1 $11) 34. Nh5 $36 {[%emt 0:02:24][%mdl 2048] White has good play.} Qxf2+ {[%emt 0:00:07]} 35. Rexf2 {[%emt 0:00:48]} Rd8 {[%emt 0:02:05]} 36. g5 $1 {[%emt 0:01:59]} hxg5 $1 {[%emt 0:05:20]} 37. hxg5 {[%emt 0:00:08]} Nf8 {[%emt 0:01:09] This costs Black the game.} ({Black should play} 37... Rxe3 $14 38. Rxf7 Rh3 39. Rg7+ Kh8) 38. Nf6+ {[%emt 0:02:03]} Kg7 {[%emt 0:00:04]} 39. Ng4 {[%emt 0:00:16] White is more active.} Nh7 {[%emt 0:03:49]} 40. Nh6 {[%emt 0:02:23] Strongly threatening Nf5+.} Re4 {[%emt 0:00:09]} 41. Nxf7 {[%emt 0:39:00]} ({Stronger than} 41. Rxf7+ Kg6 $11) 41... Rg4+ $2 {[%emt 0:14:31]} (41... Rf8) 42. Kh2 $18 {[%emt 0:00:00]} Re8 {[%emt 0:06:10] [#]} 43. Ne5 $1 {[%emt 0:00:00]} Rxg5 {[%emt 0:00:09][%cal Oh7f6]} 44. Rf7+ {[%emt 0:00:00]} Kh8 {[%emt 0:01:46]} 45. Rxb7 {[%emt 0:00:00] Nf7+ is the strong threat.} Rh5+ {[%emt 0:00:15]} 46. Kg3 {[%emt 0:00:00]} Rg8+ {[%emt 0:00:21]} 47. Kf3 {[%emt 0:00:00] Threatens to win with Nf7+.} Ng5+ {[%emt 0:00:48]} 48. Ke2 {[%emt 0:00:00]} Ne4 {[%emt 0:00:04]} 49. Kd3 {[%emt 0:00:00]} ({Weaker is} 49. Nxc6 Ng3+ 50. Ke1 Nxf1 51. Kxf1 Rh2 $11) 49... Rg7 $2 {[%emt 0:05:04]} (49... c5 50. Rf4 cxd4 51. Kxd4 Nd6 52. Nf7+ Nxf7) 50. Rf8+ {[%emt 0:00:00] White is clearly winning.} Kh7 {[%emt 0:00:05] [#]} 51. Rbb8 {[%emt 0:00:00][%csl Gb8][%cal Rf8h8]} Kh6 {[%emt 0:01:30]} 52. Rbc8 {[%emt 0:00:00]} Rh2 {[%emt 0:01:54][%csl Ge4][%cal Rh2d2]} 53. Rh8+ {[%emt 0:00:00] Weighted Error Value: White=0.07 (flawless) /Black=0.28 (precise)} 1-0

[Event "FRA-ch Teams Top 16-A 2022"]
[Site "Chartres"]
[Date "2022.06.12"]
[Round "4.3"]
[White "Wirig, Anthony"]
[Black "Bailet, Pierre"]
[Result "1/2-1/2"]
[ECO "E68"]
[WhiteElo "2520"]
[BlackElo "2509"]
[Annotator "TA"]
[PlyCount "31"]
[EventDate "2022.06.09"]
[EventType "team-tourn"]
[EventCountry "FRA"]
[SourceTitle "playchess.com"]
[Source "ChessBase"]
[SourceQuality "1"]
[TimeControl "40/5400+30:1800+30"]

{[%evp 20,31,43,26,32,31,20,23,38,2,46,36,31,41]} 1. d4 {[%emt 0:00:04]} Nf6 {[%emt 0:00:29]} 2. Nf3 {[%emt 0:00:26]} g6 {[%emt 0:01:02]} 3. c4 {[%emt 0:02:02]} Bg7 {[%emt 0:00:47]} 4. g3 {[%emt 0:00:53]} O-O {[%emt 0:00:40]} 5. Bg2 {[%emt 0:00:11]} d6 {[%emt 0:01:25]} 6. O-O {[%emt 0:01:03]} Nbd7 {[%emt 0:01:42]} 7. Nc3 {[%emt 0:03:37]} e5 {[%emt 0:00:33]} 8. e4 {[%emt 0:02:13]} a6 {[%emt 0:03:04]} 9. h3 {[%emt 0:15:13]} b5 {[%emt 0:02:49]} 10. dxe5 {[%emt 0:02:58]} dxe5 {[%emt 0:02:54]} 11. Qe2 {[%emt 0:03:26]} c6 {[%emt 0:05:36] E68: King's Indian: Fianchetto: 6...Nbd7 7 0-0 e5 8 e4.} 12. a3 {[%emt 0:07:34]} Qe7 {[%emt 0:05:08]} 13. Be3 {[%emt 0:11:29]} Nc5 {[%emt 0:10:26] [#]} 14. Rac1 $146 {[%emt 0:04:27][%cal Rc4b5]} ({Predecessor:} 14. Nd2 Rd8 15. Rfd1 Be6 16. b4 Nd3 17. Bb6 Rd6 18. c5 Rd7 19. Nf3 Bc4 20. Qe3 {½-½ (41) Sammour Hasbun,J (2375)-Gabriel,C (2535) Newark 1995}) 14... Nfd7 {[%emt 0:16:49]} (14... Nb3 $5 {[%cal Rb3c1]}) 15. b4 {[%emt 0:07:34]} Ne6 {[%emt 0:01:18]} 16. Rfd1 {[%emt 0:05:38] Against Nd4. Black got outplayed after the opening.  Weighted Error Value: White=0.10 (very precise) /Black=0.07 (flawless)} 1/2-1/2

[Event "FRA-ch Teams Top 16-A 2022"]
[Site "Chartres"]
[Date "2022.06.12"]
[Round "4.4"]
[White "Visakh N R"]
[Black "Parligras, Mircea-Emilian"]
[Result "1/2-1/2"]
[ECO "D38"]
[WhiteElo "2506"]
[BlackElo "2583"]
[Annotator "TA"]
[PlyCount "56"]
[EventDate "2022.06.09"]
[EventType "team-tourn"]
[EventCountry "FRA"]
[SourceTitle "playchess.com"]
[Source "ChessBase"]
[SourceQuality "1"]
[TimeControl "40/5400+30:1800+30"]

{[%evp 12,56,27,9,26,19,19,12,16,15,17,17,17,17,8,15,16,0,18,-4,6,0,0,-11,-16,-24,-24,-22,0,0,0,0,0,0,0,0,0,0,0,0,0,0,0,0,0,0,0]} 1. d4 {[%emt 0:00:06]} Nf6 {[%emt 0:00:16]} 2. c4 {[%emt 0:00:09]} e6 {[%emt 0:00:05]} 3. Nf3 {[%emt 0:00:04]} d5 {[%emt 0:00:15]} 4. Nc3 {[%emt 0:00:09]} Bb4 {[%emt 0:00:09]} 5. cxd5 {[%emt 0:00:26]} exd5 {[%emt 0:00:10]} 6. Bg5 {[%emt 0:00:11]} h6 {[%emt 0:00:25]} 7. Bh4 {[%emt 0:00:14]} Nbd7 {[%emt 0:00:28] 7...Bf5 is the recent fashion. D38: Queen's Gambit Declined: Ragozin Defence (4 Nf3 Bb4).} 8. Qc2 {[%emt 0:01:28]} g5 {[%emt 0:00:56]} 9. Bg3 {[%emt 0:00:04]} Ne4 {[%emt 0:00:08]} 10. Nd2 {[%emt 0:00:18]} Nxg3 {[%emt 0:00:13]} 11. hxg3 {[%emt 0:00:06]} Nb6 {[%emt 0:00:25]} 12. a3 {[%emt 0:05:26]} Bf8 {[%emt 0:00:17]} 13. e3 {[%emt 0:11:15]} c6 {[%emt 0:00:51]} 14. Bd3 {[%emt 0:01:07]} Be6 {[%emt 0:00:57]} 15. O-O-O {[%emt 0:01:53]} Qe7 {[%emt 0:06:16]} 16. Nb3 {[%emt 0:01:49]} O-O-O {[%emt 0:02:21] [#]} 17. Kb1 $146 {[%emt 0:01:23]} ({Predecessor:} 17. Nc5 Kb8 18. Kb1 Bg7 19. Rc1 h5 20. N3a4 Nc4 21. Nxe6 fxe6 22. Bxc4 dxc4 23. Qe4 {1-0 (38) L'Ami,E (2646)-Panjwani,R (2440) Reykjavik 2014}) 17... Kb8 {[%emt 0:01:57]} 18. Rc1 {[%emt 0:01:06]} h5 {[%emt 0:17:49]} 19. Nc5 {[%emt 0:05:04]} h4 {[%emt 0:03:56] The position is equal.} 20. Ne2 {[%emt 0:04:35]} Bc8 {[%emt 0:05:25]} 21. gxh4 {[%emt 0:19:02]} Rxh4 {[%emt 0:00:51]} 22. Rxh4 {[%emt 0:01:48]} gxh4 {[%emt 0:00:11]} 23. Bf5 {[%emt 0:00:36]} Qg5 {[%emt 0:03:28][%csl LRf5,LRg2]} 24. Bxc8 {[%emt 0:00:22]} Rxc8 {[%emt 0:00:16]} 25. Nf4 {[%emt 0:00:17]} Bd6 {[%emt 0:03:25]} 26. Ncd3 {[%emt 0:00:08]} Nd7 {[%emt 0:06:28]} 27. Qe2 {[%emt 0:03:07]} Rg8 {[%emt 0:04:57]} 28. Rh1 {[%emt 0:08:27]} Nf8 {[%emt 0:18:19] A balanced but interesting game.  Weighted Error Value: White=0.03 (flawless) /Black=0.03 (flawless)} 1/2-1/2

[Event "FRA-ch Teams Top 16-A 2022"]
[Site "Chartres"]
[Date "2022.06.12"]
[Round "4.5"]
[White "Demuth, Adrien"]
[Black "Feller, Sebastien"]
[Result "0-1"]
[ECO "D14"]
[WhiteElo "2493"]
[BlackElo "2569"]
[Annotator "TA"]
[PlyCount "52"]
[EventDate "2022.06.09"]
[EventType "team-tourn"]
[EventCountry "FRA"]
[SourceTitle "playchess.com"]
[Source "ChessBase"]
[SourceQuality "1"]
[TimeControl "40/5400+30:1800+30"]

{[%evp 15,52,21,20,17,17,0,0,0,0,0,0,0,0,0,0,0,68,58,60,46,57,-14,-2,-38,-39,-44,-41,-49,-39,-56,-56,-55,-54,-29990,-29991,-29991,-29992,-29992,-29993]} 1. d4 {[%emt 0:00:03]} d5 {[%emt 0:07:04]} 2. c4 {[%emt 0:00:22]} c6 {[%emt 0:01:17]} 3. cxd5 {[%emt 0:00:22]} cxd5 {[%emt 0:01:04]} 4. Bf4 {[%emt 0:00:06]} Nc6 {[%emt 0:04:59]} 5. e3 {[%emt 0:00:11]} Nf6 {[%emt 0:02:13]} 6. Nc3 {[%emt 0:00:07]} Bf5 {[%emt 0:04:24]} 7. Nf3 {[%emt 0:01:24]} e6 {[%emt 0:00:06]} 8. Qb3 {[%emt 0:00:27]} Bb4 {[%emt 0:00:47]} 9. Ne5 {[%emt 0:01:10] And now Nxc6 would win. Nowadays more popular than 9.Bb5. D14: Slav Defence: Exchange variation with ...Bf5.} Bxc3+ {[%emt 0:00:56]} 10. Qxc3 {[%emt 0:00:44]} Nxe5 {[%emt 0:11:17]} 11. Bxe5 {[%emt 0:00:23] The position is equal.} O-O {[%emt 0:00:13]} 12. Qb4 {[%emt 0:00:16]} Rc8 {[%emt 0:40:42]} 13. Be2 {[%emt 0:00:45]} Rc2 {[%emt 0:04:12]} 14. Bd1 {[%emt 0:01:03]} Rc4 {[%emt 0:01:44]} 15. Qa3 {[%emt 0:00:05]} Qb6 {[%emt 0:04:42] [#]} (15... a6 $11) 16. Bd6 $146 {[%emt 0:04:09]} ({Predecessor:} 16. O-O Rfc8 17. Bb3 R4c6 18. Ba4 Rc4 19. Bb3 {½-½ (19) Martinovic,S (2513)-Erdos,V (2608) Sibenik 2011}) 16... Rfc8 {[%emt 0:02:55]} 17. Bc5 {[%emt 0:00:10] A strong pair of Bishops.} Qc6 {[%emt 0:00:24]} 18. b3 {[%emt 0:30:11]} (18. O-O $1 $14) 18... Rc3 $11 {[%emt 0:01:00]} 19. O-O {[%emt 0:17:57]} (19. Qb2 $5 {[%cal Rb2c3]} Ne4 20. O-O $11) 19... Bd3 {[%emt 0:01:56]} ({Don't do} 19... Rxc5 20. Qxc5 Qxc5 21. dxc5 $16) 20. Re1 {[%emt 0:00:23]} Ne4 $36 {[%emt 0:00:06][%cal Re4c5][%mdl 2048] Black fights for an advantage.} ({Don't play} 20... Rxc5 21. Qxc5 Qxc5 22. dxc5 $16) 21. Bb4 {[%emt 0:23:37]} Rc1 {[%emt 0:00:15]} 22. Bf3 {[%emt 0:03:17]} Rc2 {[%emt 0:02:31]} 23. Bxe4 {[%emt 0:07:12]} Bxe4 {[%emt 0:00:06]} 24. f3 $2 {[%emt 0:00:12][%mdl 8192] [#]} (24. Bd6 $15) 24... Bxf3 $1 {[%emt 0:05:16][%mdl 512] Black mates.} 25. gxf3 {[%emt 0:00:23] [#]} e5 $1 {[%emt 0:00:18]} ({Not} 25... Qc7 26. Bd6 Qc3 27. Rad1 $16) 26. Bd6 {[%emt 0:04:41]} Qd7 {[%emt 0:00:01] Weighted Error Value: White=0.38/Black=0.07 (flawless)} 0-1

[Event "FRA-ch Teams Top 16-A 2022"]
[Site "Chartres"]
[Date "2022.06.12"]
[Round "4.6"]
[White "Lazarev, Vladimir"]
[Black "Milliet, Sophie"]
[Result "1/2-1/2"]
[ECO "E36"]
[WhiteElo "2491"]
[BlackElo "2410"]
[Annotator "TA"]
[PlyCount "39"]
[EventDate "2022.06.09"]
[EventType "team-tourn"]
[EventCountry "FRA"]
[SourceTitle "playchess.com"]
[Source "ChessBase"]
[SourceQuality "1"]
[TimeControl "40/5400+30:1800+30"]

{[%evp 12,39,16,0,8,0,0,0,17,24,10,-12,0,0,-6,-30,-30,-29,-16,-22,-10,-12,-3,0,0,0,0,0,-8,-8]} 1. d4 {[%emt 0:01:25]} Nf6 {[%emt 0:00:05]} 2. c4 {[%emt 0:00:30]} e6 {[%emt 0:00:03]} 3. Nc3 {[%emt 0:01:19]} Bb4 {[%emt 0:00:06]} 4. Qc2 {[%emt 0:02:21]} O-O {[%emt 0:00:17]} 5. a3 {[%emt 0:01:28]} Bxc3+ {[%emt 0:00:05]} 6. Qxc3 {[%emt 0:00:04]} d5 $1 {[%emt 0:00:07][%mdl 4] now scores much better than the old 6...b6.} 7. Nf3 {[%emt 0:02:16]} b6 {[%emt 0:00:06] E36: Nimzo-Indian: Classical: 4...d5 5 a3.} 8. Bg5 {[%emt 0:05:21]} dxc4 {[%emt 0:00:27]} 9. Qxc4 {[%emt 0:00:34]} c5 {[%emt 0:00:32]} 10. dxc5 {[%emt 0:06:24]} bxc5 {[%emt 0:00:04] [#]} 11. Rd1 $146 {[%emt 1:14:18]} ({Predecessor:} 11. Nd2 Ba6 12. Qc2 h6 13. Bh4 Nbd7 14. e3 Bxf1 15. Rxf1 c4 16. Ke2 Qb8 17. Bg3 {1-0 (39) Shankland,S (2708)-Grischuk,A (2764) Belgrade 2022}) 11... Qa5+ {[%emt 0:11:11]} 12. Bd2 {[%emt 0:00:00]} Qb6 {[%emt 0:00:28]} 13. b4 {[%emt 0:00:00]} cxb4 {[%emt 0:13:40]} 14. Bxb4 {[%emt 0:00:00]} Rd8 {[%emt 0:00:32]} 15. Rxd8+ {[%emt 0:00:00] The position is equal.} Qxd8 {[%emt 0:00:09]} 16. e3 {[%emt 0:00:00]} Bb7 {[%emt 0:11:53] Hoping for ...Nbd7.} 17. Be2 {[%emt 0:00:00]} Bd5 {[%emt 0:12:34]} 18. Qc2 {[%emt 0:00:00]} Nc6 {[%emt 0:01:05]} 19. O-O {[%emt 0:00:00]} Nxb4 {[%emt 0:02:36]} 20. axb4 {[%emt 0:00:00] A balanced but interesting game.  Weighted Error Value: White=0.04 (flawless) /Black=0.05 (flawless)} 1/2-1/2

[Event "FRA-ch Teams Top 16-A 2022"]
[Site "Chartres"]
[Date "2022.06.12"]
[Round "4.7"]
[White "Loiseau, Quentin"]
[Black "Koch, Jean-Rene"]
[Result "1-0"]
[ECO "C42"]
[WhiteElo "2445"]
[BlackElo "2441"]
[Annotator "TA"]
[PlyCount "89"]
[EventDate "2022.06.09"]
[EventType "team-tourn"]
[EventCountry "FRA"]
[SourceTitle "playchess.com"]
[Source "ChessBase"]
[SourceQuality "1"]
[TimeControl "40/5400+30:1800+30"]

{[%evp 23,89,27,25,12,20,13,6,-9,-6,-22,-16,-24,0,0,0,0,0,-2,0,0,0,0,6,0,0,0,0,-12,31,0,0,0,0,-1,20,-13,0,2,0,-22,-8,-53,-47,-104,-112,-114,0,-9,515,500,977,170,954,894,861,833,2087,2002,29986,1300,1321,1241,29966,29966,4870,879,29974,29974]} 1. e4 {[%emt 0:00:05]} e5 {[%emt 0:00:14]} 2. Nf3 {[%emt 0:00:07]} Nf6 {[%emt 0:00:08]} 3. Nxe5 {[%emt 0:00:14]} d6 {[%emt 0:00:06]} 4. Nf3 {[%emt 0:00:08]} Nxe4 {[%emt 0:00:07]} 5. d4 {[%emt 0:00:08]} d5 {[%emt 0:00:43]} 6. Bd3 {[%emt 0:00:17]} Nc6 {[%emt 0:01:25]} 7. O-O {[%emt 0:00:41]} Be7 {[%emt 0:01:15]} 8. c4 {[%emt 0:02:37]} Nb4 {[%emt 0:00:56]} 9. Be2 {[%emt 0:00:49]} O-O {[%emt 0:05:26]} 10. Nc3 {[%emt 0:03:16]} Bf5 {[%emt 0:01:13]} 11. a3 {[%emt 0:16:23]} Nxc3 {[%emt 0:00:34]} 12. bxc3 {[%emt 0:00:03]} Nc6 $1 {[%emt 0:00:12]} 13. Bf4 {[%emt 0:01:54] C42: Petroff Defence: 3 Nxe5 and unusual White 3rd moves.} dxc4 {[%emt 0:22:59]} 14. Bxc4 {[%emt 0:01:40]} Bd6 {[%emt 0:00:31]} 15. Bg5 {[%emt 0:01:06] The position is equal.} Qd7 {[%emt 0:10:45]} 16. Nh4 {[%emt 0:05:35]} Na5 {[%emt 0:05:23]} 17. Ba2 {[%emt 0:01:32][%cal Bc4a2,Ba2b1,Bb1c2,Bc2a4][%mdl 32] [#]} c5 $146 {[%emt 0:04:37]} ({Predecessor:} 17... Bg4 18. Qd3 Rfe8 19. f3 Be6 20. d5 Bc5+ 21. Kh1 Bxd5 22. Rad1 c6 23. c4 h6 24. Bc1 Qd8 25. cxd5 Qxh4 26. d6 Rad8 27. Qf5 Bxd6 {1-0 (27) Gavrilakis,N (2395)-Orfanos,L (2160) Athens 1994}) 18. dxc5 {[%emt 0:15:49]} Bxc5 {[%emt 0:00:28]} 19. Nxf5 {[%emt 0:00:27]} Qxf5 {[%emt 0:00:11]} 20. Bh4 {[%emt 0:06:55][%cal Bg5h4,Bh4g3,Bg3f4][%mdl 32]} Nc6 {[%emt 0:15:32]} 21. Bb1 {[%emt 0:06:20]} Qe5 {[%emt 0:02:38]} 22. Qf3 {[%emt 0:04:29]} Rae8 {[%emt 0:05:48]} 23. Bg3 {[%emt 0:07:26]} Qe7 {[%emt 0:01:26]} 24. Bc2 {[%emt 0:00:57]} Bxa3 {[%emt 0:06:54]} 25. Bf4 {[%emt 0:06:43]} f5 {[%emt 0:04:17]} 26. h4 {[%emt 0:07:23][%mdl 1024] White has compensation.} Kh8 {[%emt 0:01:09]} 27. Rfd1 {[%emt 0:00:25]} Bc5 {[%emt 0:04:28]} 28. Rd5 {[%emt 0:00:22]} Qe2 {[%emt 0:01:20]} 29. Ba4 {[%emt 0:08:33]} Qxf3 {[%emt 0:01:02]} 30. gxf3 {[%emt 0:00:02]} Bb6 {[%emt 0:00:34]} 31. Rd7 {[%emt 0:00:30]} Re2 {[%emt 0:01:38]} 32. Rxb7 {[%emt 0:00:19]} Na5 {[%emt 0:00:41]} (32... Bxf2+ $2 33. Kf1 Re7 34. Rxe7 Nxe7 35. Kxf2 $18) 33. Rd7 {[%emt 0:01:53]} (33. Bb5 $15 Rb2 34. Rxa5 Bxa5 35. Be5) 33... Rxf2 $17 {[%emt 0:00:18]} 34. Kh1 {[%emt 0:00:09] [#] aiming for Rg1.} Nc4 {[%emt 0:00:57]} (34... Rxf3 $17 35. Be5 Rg8) 35. Rg1 $40 {[%emt 0:01:05][%mdl 128] White attacks.} g6 {[%emt 0:00:51][%mdl 8192] This costs Black the game.} (35... Rg8 $11 {and Black stays safe.} 36. Bc6 Rc2) 36. Bh6 $18 {[%emt 0:00:38] Intending Bb3 and mate. A strong pair of Bishops.} Rd8 {[%emt 0:01:08]} (36... Rd2 $142 37. Bxf8 Bxg1 38. Kxg1 Kg8) 37. Rxd8+ {[%emt 0:00:17]} Bxd8 {[%emt 0:00:01]} 38. Re1 {[%emt 0:00:05][%cal Re1e8]} Nd6 {[%emt 0:00:18] Inhibits Re8+.} 39. Re6 {[%emt 0:00:26]} Bxh4 {[%emt 0:01:14]} 40. Rxd6 {[%emt 0:00:08] Bb3 would kill now.} Rxf3 {[%emt 0:00:31]} 41. Re6 {[%emt 0:08:12]} (41. Rd7 $142 Rf1+ 42. Kg2 Rb1 43. Bc6 Bf6 44. Rf7 Rb2+ 45. Kh3 Bg7 46. Rxg7) 41... Rf1+ {[%emt 0:06:01]} 42. Kg2 {[%emt 0:00:33][%cal Re6e8]} Re1 {[%emt 0:00:08]} 43. Rc6 {[%emt 0:02:13]} Re8 {[%emt 0:01:23]} 44. Rc4 {[%emt 0:00:27]} (44. Kh3 $142 Be1 45. Rc7 Rb8 {[#]} 46. Bb3 $1 {[%mdl 512]} Bxc3 47. Rxc3 Rxb3 48. Rxb3 Kg8 49. Rb7) 44... Re2+ {[%emt 0:00:33]} 45. Kh3 {[%emt 0:00:56] Weighted Error Value: White=0.14 (very precise) /Black=0.97} 1-0